Cogmind - Beta 14 @@@ ROGUE MODE // 2024.10.03 @ 17:52:16 Player: N.W.L Result: Destroyed by B-86 Titan with Hardcell Cannon Performance ------------- Evolutions (7) 3500 Regions Visited (13) 2600 Robots Destroyed (118) 590 Value Destroyed (6330) 6330 Prototype IDs (17) 340 Alien Tech Used (5) 1000 Bonus (8725) 8725 TOTAL SCORE: 23085 Bonus ------- High Alert Combat Kills 303 Follower Combat Kills 1328 Entered Garrisons 400 Used RIF Installer 1000 Found Hidden Lab 3000 Used Core Reset Matrix 3000 Pursued by Intercept 500 Friendly Fire -806 Cogmind --------- Core Integrity 0/1300 Matter 33/300 Energy 100/100 System Corruption 3% Temperature Cool (0) Movement Core (50) Location -3/Research Parts ------- > --- POWER (2) -------- (None) > --- PROPULSION (5) --- (None) > --- UTILITY (11) ----- Hacking Suite > --- WEAPON (3) ------- (None) > --- INVENTORY (5) ---- Mini Drone Bay (2/3) Hypervelocity EM Gauss Rifle Improved Remote Datajack Guided Remote Datajack Peak State ------------ > --- POWER ------------ Multi-Quantum Reactor > --- PROPULSION ------- Advanced Heavy Siege Treads Centrium-Siege Exoskeleton > --- UTILITY ---------- Armored Scrap Engine Experimental Power Amplifier Cargo Storage Unit Quantum Capacitor Experimental Powered Armor LC Capacitor > --- WEAPON ----------- Heavy Tesla Rifle Hvy. Energy Linear Construct/C > --- INVENTORY -------- Combat Linear Gravjet Experimental Heat Sink Improved Cooling System Huge Storage Unit Enhanced Optical Array Advanced Particle Charger Advanced Particle Charger Microactuators Improved Transmission Jammer Advanced Cloaking Device Improved Focal Shield Advanced Thermal Shield Advanced Shield Generator Improved Remote Force Field Quantum Router Mini Drone Bay Transdimensional Reconstructor Core Regenerator Hypervelocity EM Gauss Rifle Potential Cannon Linear Accelerator Micro-nuke Launcher Fusion Bomb Launcher Improved Remote Datajack Guided Remote Datajack Power Sword [Rating: 195] Favorites ----------- Power Constructs Engine Light Ion Engine Power Core Micro Nuclear Core Reactor Constructs Propulsion Constructs Treads Advanced Heavy Siege Treads Leg Constructs Wheel Armored Huge Wheel Flight Unit Cooled Q-thruster Utility Cargo Storage Unit Device Armored Scrap Engine Storage Cargo Storage Unit Processor Corruption Screen Hackware Relay Coupler [NC] Protection Experimental Powered Armor Artifact LC Capacitor Weapon Constructs Energy Gun Constructs Energy Cannon Constructs Ballistic Gun Hypervelocity Gauss Rifle Ballistic Cannon Improved Light Cannon Launcher Micro-nuke Launcher Special Weapon Remote Datajack Impact Weapon Powered Hammer Slashing Weapon Power Sword Build | -11 -10 -10 -7 -5 -5 -5 -5 -4 -4 -4 -4 -4 -3 ------- Run | Yrd Mat Sub Rec Fac Gar Fac Gar Fac Was Fac Arm Lab Res Slots Evolved 14 | . . . . 10 . . . 2 . . . . 2 Power 1 | . . . . 1 . . . . . . . . . Propulsion 3 | . . . . 2 . . . 1 . . . . . Utility 9 | . . . . 6 . . . 1 . . . . 2 Weapon 1 | . . . . 1 . . . . . . . . . Parts Attached 148 | . 2 5 12 8 14 3 8 2 9 21 38 7 19 Power 5 | . 1 . 1 . . . . . . 2 1 . . Engine 1 | . 1 . . . . . . . . . . . . Core 1 | . . . 1 . . . . . . . . . . Reactor 3 | . . . . . . . . . . 2 1 . . Propulsion 14 | . . 2 3 2 . . . . 1 . 5 1 . Treads 9 | . . 2 2 . . . . . . . 5 . . Leg 1 | . . . . . . . . . . . . 1 . Wheel 3 | . . . 1 2 . . . . . . . . . Hover . | . . . . . . . . . . . . . . Flight 1 | . . . . . . . . . 1 . . . . Utility 84 | . . 1 4 6 6 1 5 1 7 10 22 4 17 Device 60 | . . . 2 4 4 1 5 . 6 6 18 3 11 Storage 4 | . . . 2 1 1 . . . . . . . . Processor 4 | . . . . . . . . 1 . 1 . . 2 Hackware 11 | . . . . . 1 . . . 1 3 4 . 2 Protection 4 | . . 1 . 1 . . . . . . . . 2 Artifact 1 | . . . . . . . . . . . . 1 . Weapon 45 | . 1 2 4 . 8 2 3 1 1 9 10 2 2 Energy Gun 11 | . . 1 2 . 6 . . . . . . 1 1 Energy Cannon 5 | . . . 1 . . . . . . . 4 . . Ballistic Gun 4 | . . . . . . 1 . . 1 2 . . . Ballistic Cannon 3 | . . . 1 . . . . . . 2 . . . Launcher 5 | . . . . . 1 1 1 . . . 1 . 1 Special Weapon 12 | . 1 1 . . . . 1 1 . 5 3 . . Impact Weapon 2 | . . . . . 1 . 1 . . . . . . Slashing Weapon 3 | . . . . . . . . . . . 2 1 . Piercing Weapon . | . . . . . . . . . . . . . . Special Melee Weapon . | . . . . . . . . . . . . . . Unidentified Prototypes 13 | . . . 1 . . . . . 1 3 . 2 6 Parts Lost 42 | . . . 2 . . . 6 . . 5 18 2 9 Power 3 | . . . . . . . . . . 2 . . 1 Propulsion 4 | . . . . . . . . . . . 3 . 1 Utility 25 | . . . . . . . 5 . . 1 13 2 4 Weapon 10 | . . . 2 . . . 1 . . 2 2 . 3 Highest Loss Streak 7 | . . . 1 . . . 6 . . 1 5 2 7 To Critical Strikes . | . . . . . . . . . . . . . . Average Slot Usage (%) 58 | . 85 68 64 63 62 55 57 54 56 55 61 52 47 Core 2 | . . . 8 5 5 5 5 5 . . . . . Reactor 2 | . . . . . . . . . 4 5 5 5 3 Treads 5 | . . 26 7 . 4 5 5 5 1 5 10 10 4 Leg 2 | . 28 1 6 5 . . . . . . . 4 3 Device 19 | . . . 12 23 27 29 28 26 21 19 23 15 13 Storage 5 | . 14 . 5 5 5 5 5 5 5 5 5 5 3 Processor 1 | . . . . . . . . 4 5 4 1 . . Hackware 2 | . . . . . 1 . . . 4 6 4 . 1 Energy Gun 3 | . 12 7 5 5 11 5 . . . . 1 . 1 Energy Cannon 3 | . . . 4 . . . 4 5 5 5 2 4 3 Ballistic Gun 2 | . 14 14 3 . . 1 3 . 3 . . . . Ballistic Cannon 1 | . . . 4 . . . . . . . 2 . . Peak Build Rating 195 | . 7 10 38 76 102 107 113 113 131 127 150 185 195 Average Rating 102 | . 6 6 28 63 90 97 106 109 118 116 126 145 175 On Entrance 78 | 6 6 6 5 38 76 99 106 113 109 109 122 123 185 Naked Turns 32 | . . . . . . . . . . . . . 32 Heaviest Build 241 | 13 13 25 97 119 185 185 187 184 189 193 241 220 230 Greatest Support 222 | 20 20 40 41 41 106 196 97 97 190 190 222 158 158 Greatest Overweight (x) 12 | . . 1 3 11 12 1 1 1 1 1 1 1 2 Average Overweight (x) 1 | . . . . 4 2 . 1 1 . . . 1 1 Largest Inventory Capacity 30 | . 8 8 25 25 30 30 30 30 30 30 30 30 30 Average Capacity 25 | . 8 5 10 24 27 30 30 30 30 30 30 30 29 Most Carried 30 | . 8 7 22 16 30 30 29 23 30 30 30 30 30 Average Carried 21 | . 6 4 8 9 24 28 27 22 24 25 24 27 25 Final Capacity 30 | 8 8 5 5 25 30 30 30 30 30 30 30 30 5 Final Carried 30 | 6 7 4 5 13 29 27 22 22 20 24 26 30 4 Scrap Engine Consumption 160 | . . . 23 1 20 18 1 1 33 13 44 1 5 Constructs Created 5 | . . . 3 . . 1 . . . 1 . . . Constructs Modified 64 | . . . 5 1 9 6 1 1 10 3 26 1 1 Class Distribution -------------------- 31% | Bothacker-Construct 19% | Hauler-Mutant 12% | Hauler-Construct 9% | Commander-Construct 6% | Commander-Mutant 6% | Hauler-Gunner 4% | Mutant Dominant Class ---------------- Mutant | -10/Materials Mutant | -10/Subcaves Commander-Construct | -7/Recycling Scavenger-Mutant | -5/Factory Hauler-Construct | -5/Garrison Hauler-Construct | -5/Factory Bothacker-Construct | -5/Garrison Bothacker-Construct | -4/Factory Bothacker-Construct | -4/Waste Bothacker-Construct | -4/Factory Hauler-Mutant | -4/Armory Hauler-Mutant | -4/Lab Hauler-Mutant | -3/Research Resources | -11 -10 -10 -7 -5 -5 -5 -5 -4 -4 -4 -4 -4 -3 ----------- Run | Yrd Mat Sub Rec Fac Gar Fac Gar Fac Was Fac Arm Lab Res Matter Collected 4116 | 200 89 79 329 . 358 20 92 . 554 488 1103 50 754 Remotely . | . . . . . . . . . . . . . . Salvage Created 8248 | . 192 76 816 . 1293 . 238 . 1975 1085 1389 50 1134 Parts 303 | . 16 6 25 . 41 . 5 . 47 41 65 1 56 Haulers Intercepted 2 | . . . . . . . . . . 1 . . 1 Recyclers Shooed 15 | . . . 8 2 . . . . . 2 . . 3 Parts Field Recycled . | . . . . . . . . . . . . . . Retrieved Matter . | . . . . . . . . . . . . . . Parts Self-Destructed 7 | . . 7 . . . . . . . . . . . Prevented . | . . . . . . . . . . . . . . Kills | -11 -10 -10 -7 -5 -5 -5 -5 -4 -4 -4 -4 -4 -3 ------- Run | Yrd Mat Sub Rec Fac Gar Fac Gar Fac Was Fac Arm Lab Res Combat Hostiles Destroyed 89 | . 4 2 3 . 12 . 4 . 6 14 28 1 15 Melee 1 | . . . . . . . . . . . . 1 . Guns 27 | . 4 2 1 . 6 . 2 . 5 . 6 . 1 Cannons 41 | . . . 2 . . . 2 . 1 14 16 . 6 AOE 15 | . . . . . 4 . . . . . 4 . 7 Classes Destroyed 23 | . 3 1 4 . 3 . 1 . 1 3 2 . 5 Worker 6 | . . . . . . . . . . . . . 6 Builder 4 | . 1 . . . . . . . . 1 . . 2 Tunneler 3 | . 2 . . . . . . . . . . . 1 Hauler 2 | . . . . . . . . . . 1 . . 1 Recycler 9 | . . . 6 . . . . . . 2 . . 1 Mechanic 1 | . . . . . . . . . . . . . 1 Watcher 4 | . . . . . . . . . . 1 1 . 2 Swarmer 7 | . . . . . 2 . 1 . . . 4 . . Saboteur 1 | . . . . . . . . . . . . . 1 Grunt 16 | . 4 . . . 5 . 2 . . 3 2 . . Brawler 1 | . . . . . . . 1 . . . . . . Duelist 5 | . . . . . 1 . . . . . 4 . . Protector 1 | . . . . . . . . . . . 1 . . Sentry 9 | . . . 1 . 2 . . . . 3 2 . 1 Demolisher 1 | . . . . . . . . . . . 1 . . Hunter 13 | . . . . . 1 . . . . 2 5 . 5 Programmer 22 | . . . 1 . 1 . . . . 5 9 . 6 Behemoth 1 | . . . . . . . . . . 1 . . . Compactor 6 | . . . . . . . . . 6 . . . . Striker 1 | . . . . . . . . . . . . . 1 Executioner 1 | . . . . . . . . . . . . . 1 Subdweller 2 | . . 2 . . . . . . . . . . . Scrapper 1 | . . . 1 . . . . . . . . . . Best Kill Streak 17 | . 3 2 3 . 4 . 3 . 2 4 4 1 17 Combat Bots Only 7 | . 2 2 1 . 4 . 3 . 2 4 4 1 7 Max Kills in Single Turn 4 | . 1 1 1 . 2 . 1 . 1 1 4 1 4 Gunslinging 1 | . . . . . 1 . . . . . . . . Exploded 4 | . . . . . 2 . . . . . 4 . 2 Melee 1 | . . . . . . . . . . . . 1 . Uniques/NPCs Destroyed 1 | . . . . . . . . . . . . 1 . A5 (-4/Lab) Combat | -11 -10 -10 -7 -5 -5 -5 -5 -4 -4 -4 -4 -4 -3 -------- Run | Yrd Mat Sub Rec Fac Gar Fac Gar Fac Was Fac Arm Lab Res Hostile Shots Fired 1103 | . 28 54 65 . 74 . 67 . . 185 268 71 291 Missed 332 | . 6 22 19 . 17 . 20 . . 61 73 15 99 Damage Taken 16786 | . 262 518 348 . 772 24 1232 . . 2876 5472 1452 3830 Core 2978 | . 36 71 81 . 22 . 160 . . 300 659 105 1544 Absorbed by Shields 708 | . . . 205 . 276 21 206 . . . . . . Reduced by Siege Mode 462 | . . . . . . . . . . 20 352 78 12 Ignored by Resistances 444 | . . . . . 223 . 196 . . . 25 . . Regen/Repaired (Parts) 3238 | . . . 31 . 481 49 6 27 517 492 1361 95 179 Core Remaining (%) 53 | 100 . . 24 . . . 81 . . . . 7 . Volleys Fired 721 | . 29 15 79 2 92 13 41 1 98 104 158 19 70 Largest 3 | . 2 2 2 1 3 2 2 1 1 3 3 1 1 Hottest 363 | . 100 100 114 65 210 101 101 5 199 200 363 144 144 Shots Fired 835 | . 52 26 95 2 122 14 45 1 98 119 175 16 70 Gun 447 | . 46 24 61 2 118 14 10 . 80 6 54 . 32 Cannon 335 | . . . 34 . . . 35 . 11 95 112 16 32 Launcher 12 | . . . . . 4 . . . . . 2 . 6 Special 41 | . 6 2 . . . . . 1 7 18 7 . . Kinetic 258 | . 23 13 53 . . 1 7 . 80 18 63 . . Thermal 441 | . 29 13 28 2 84 13 38 . 11 83 92 16 32 Explosive 12 | . . . . . 4 . . . . . 2 . 6 Electromagnetic 91 | . . . 14 . 34 . . . . . 11 . 32 Robot Hit Streak 43 | . 5 13 22 7 34 . 5 6 15 16 43 5 17 Robot Miss Streak 6 | . 6 2 2 . 2 1 6 . 2 5 4 1 6 Penetration Max 2 | . . . . . . . 2 . 1 1 . . . Secondary Targets 3 | . 1 . . . 2 . . . . . . . . Max Gunslinging Chain 1 | . 1 . . . 1 . . . . . . . . Capacitor 65 | . . . . . . . . . . . . 1 64 Shots Hit Robots 565 | . 28 16 70 2 92 . 9 1 76 85 102 37 47 Core Hits 254 | . 12 5 26 1 48 . 5 . 15 27 56 8 51 Critical Kills 8 | . . . . . . . 2 . 4 1 1 . . Critical Parts Destroyed 12 | . . . 1 . . . . . 4 7 . . . Critical Strikes 50 | . . . 2 . 8 . 2 . 23 8 4 3 . Burn 9 | . . . 1 . 7 . . . . . 1 . . Meltdown 1 | . . . . . . . . . . . 1 . . Destroy 34 | . . . 1 . . . 2 . 23 8 . . . Blast 2 | . . . . . . . . . . . 2 . . Corrupt 1 | . . . . . 1 . . . . . . . . Sever 3 | . . . . . . . . . . . . 3 . Melee Attacks 57 | . . . . . 9 . 7 . . . 3 38 . Impact 16 | . . . . . 9 . 7 . . . . . . Slashing 41 | . . . . . . . . . . . 3 38 . Piercing . | . . . . . . . . . . . . . . Sneak Attacks . | . . . . . . . . . . . . . . Combat Hostiles . | . . . . . . . . . . . . . . Follow-up Attacks . | . . . . . . . . . . . . . . Damage Inflicted 23349 | . 366 218 1330 45 2767 . 321 . 1223 4680 5137 2006 5256 Guns 5883 | . 342 218 685 45 1938 . 38 . 478 118 1611 . 410 Cannons 12459 | . . . 556 . . . 283 . 745 4562 3231 649 2433 Explosions 3560 | . . . 82 . 829 . . . . . 261 . 2388 Melee 1384 | . . . . . . . . . . . 34 1350 . Ramming 39 | . . . 7 . . . . . . . . 7 25 Kinetic 3606 | . 185 122 608 . . . 38 . 478 372 1803 . . Thermal 13348 | . 181 96 486 45 1456 . 283 . 745 4308 2666 649 2433 Explosive 3317 | . . . . . 668 . . . . . 261 . 2388 Electromagnetic 1655 | . . . 229 . 643 . . . . . 373 . 410 Impact . | . . . . . . . . . . . . . . Slashing 1384 | . . . . . . . . . . . 34 1350 . Piercing . | . . . . . . . . . . . . . . Highest Corruption 35 | . . . 1 . . . 12 . . 5 24 35 3 Average Corruption 12 | . . . 1 . . . 11 . . 3 17 13 1 Corruption Purged . | . . . . . . . . . . . . . . Corruption Blocked 1 | . . . . . . . . . . 1 . . . Effects 157 | . . . . . . . 4 . . 2 102 39 10 Message Errors 42 | . . . . . . . 1 . . . 28 11 2 Matter Fused 27 | . . . . . . . . . . 2 24 1 . Heat Flow Errors 21 | . . . . . . . . . . . 13 5 3 Energy Discharges 16 | . . . . . . . . . . . 10 6 . Parts Fused 1 | . . . . . . . . . . . . . 1 Data Loss (minor) 25 | . . . . . . . 2 . . . 14 8 1 Data Loss (major) 6 | . . . . . . . 1 . . . 2 2 1 Misfires 2 | . . . . . . . . . . . 2 . . Alerts 6 | . . . . . . . . . . . 2 2 2 Misdirections 1 | . . . . . . . . . . . . 1 . Weapon Failures 10 | . . . . . . . . . . . 7 3 . Overload Shots . | . . . . . . . . . . . . . . Overflow Damage 1279 | . . . 26 . 18 . . . . 202 335 97 601 Projectiles 939 | . . . . . . . . . . 202 335 . 402 Explosions 243 | . . . 26 . 18 . . . . . . . 199 Melee 97 | . . . . . . . . . . . . 97 . Knockbacks 17 | . . . 2 . . . . . . 3 12 . . Impact . | . . . . . . . . . . . . . . Kinetic 16 | . . . 2 . . . . . . 2 12 . . Secondary 1 | . . . . . . . . . . 1 . . . Self-Inflicted Damage 359 | . . . 35 . 53 . . . . . 68 . 203 Shots 8 | . . . 1 . 2 . . . . . 1 . 4 Rammed 7 | . . . 1 . . . . . . . . 1 5 Targets Rammed 9 | . . . 2 . . . . . . . . 1 6 Kicked 2 | . . . 1 . . . . . . . . . 1 Crushed . | . . . . . . . . . . . . . . Highest Temperature 587 | . 144 . 199 40 200 . 40 . 394 279 524 198 587 Average Temperature 105 | . 67 . 83 22 82 . 18 . 173 106 103 76 168 Received Heat Transfer 1336 | . 150 141 81 . 147 . 144 . . 223 282 . 168 Effects 17 | . . . . . . . . . 1 1 4 . 11 Shutdowns 3 | . . . . . . . . . 1 . 1 . 1 Energy Bleed 3 | . . . . . . . . . . 1 . . 2 Interference 8 | . . . . . . . . . . . 2 . 6 Short Circuit 2 | . . . . . . . . . . . 1 . 1 Damage (minor) 1 | . . . . . . . . . . . . . 1 Siege Activations 21 | . . . . . . . . . . 3 11 2 5 Total Turns 412 | . . . . . . . . . . 35 219 52 106 Longest Duration 62 | . . . . . . . . . . 21 33 50 62 Robots Corrupted 7 | . . . . . 5 . . . . . 1 . 1 Combat Hostiles 2 | . . . . . . . . . . . 1 . 1 Parts Fried 17 | . . . . . 9 . . . . . 2 . 6 Impact Corruptions . | . . . . . . . . . . . . . . Robots Melted 3 | . . . . . 2 . . . . . 1 . . Combat Hostiles 3 | . . . . . 2 . . . . . 1 . . Parts Melted 11 | . . . 1 . 2 . 2 . . 1 3 . 2 Heat Transferred 11523 | . 400 259 912 100 3207 . 348 . 370 2294 2377 313 943 Parts Sabotaged 2 | . . . . . . . . . . . 2 . . Parts Stolen . | . . . . . . . . . . . . . . Parts Stripped . | . . . . . . . . . . . . . . Power Chain Reactions 2 | . . . 1 . 1 . . . . . . . . Alert | -11 -10 -10 -7 -5 -5 -5 -5 -4 -4 -4 -4 -4 -3 ------- Run | Yrd Mat Sub Rec Fac Gar Fac Gar Fac Was Fac Arm Lab Res Peak Influence 1660 | . 144 . 124 382 1660 910 615 322 114 409 507 . 344 Initial 863 | . . . 35 382 249 863 318 322 112 . 30 . . Average 221 | . 82 . 37 376 877 723 479 322 11 175 197 . 53 Maximum Alert Level 5 | . . . . 1 5 3 2 1 . 2 2 . 1 Low Security (%) 67 | . 100 . 100 . . . . . 100 54 57 . 96 Level 1 11 | . . . . 100 . . 22 100 . 44 29 . 3 Level 2 10 | . . . . . 37 34 77 . . 1 12 . . Level 3 7 | . . . . . 36 65 . . . . . . . Level 4 2 | . . . . . 19 . . . . . . . . Level 5 . | . . . . . 6 . . . . . . . . High Security . | . . . . . . . . . . . . . . Max Security . | . . . . . . . . . . . . . . Squads Dispatched 30 | . . . . . . 3 . . . 9 7 . 11 Investigation 3 | . . . . . . . . . . 1 1 . 1 Extermination 12 | . . . . . . 1 . . . 3 5 . 3 Reinforcement 10 | . . . . . . 1 . . . 5 1 . 3 Assault 1 | . . . . . . 1 . . . . . . . Garrison 1 | . . . . . . . . . . . . . 1 Intercept 3 | . . . . . . . . . . . . . 3 Searches Triggered . | . . . . . . . . . . . . . . Construction Impeded 2 | . . . . . . . . . . 2 . . . Haulers Reinforced . | . . . . . . . . . . . . . . Active Scanning Responses . | . . . . . . . . . . . . . . Cargo Convoy Interrupts 1 | . . . . . . . . . . . . . 1 Stealth | -11 -10 -10 -7 -5 -5 -5 -5 -4 -4 -4 -4 -4 -3 --------- Run | Yrd Mat Sub Rec Fac Gar Fac Gar Fac Was Fac Arm Lab Res Distress Signals 9 | . 1 . 2 . . . . . . 4 . . 2 Communications Jammed 68 | . . . . . . . . . . 1 67 . . Distress Signals 68 | . . . . . . . . . . 1 67 . . Times Spotted 238 | . 7 16 14 2 32 1 19 . 6 39 46 1 55 Peak Tracking Total 27 | . 5 7 5 3 12 1 10 . 2 5 5 1 27 Tactical Retreats 14 | . 1 2 1 . 1 . 5 . . . 1 . 3 Traps | -11 -10 -10 -7 -5 -5 -5 -5 -4 -4 -4 -4 -4 -3 ------- Run | Yrd Mat Sub Rec Fac Gar Fac Gar Fac Was Fac Arm Lab Res Traps Triggered 12 | . . . . . 5 1 4 1 . 1 . . . Indirectly . | . . . . . . . . . . . . . . Trap Hack Attempts . | . . . . . . . . . . . . . . Triggered . | . . . . . . . . . . . . . . Disarmed . | . . . . . . . . . . . . . . Reprogrammed . | . . . . . . . . . . . . . . Reused . | . . . . . . . . . . . . . . Traps Extracted . | . . . . . . . . . . . . . . Installed . | . . . . . . . . . . . . . . Triggered . | . . . . . . . . . . . . . . Machines | -11 -10 -10 -7 -5 -5 -5 -5 -4 -4 -4 -4 -4 -3 ---------- Run | Yrd Mat Sub Rec Fac Gar Fac Gar Fac Was Fac Arm Lab Res Machines Disabled 26 | . . . 2 . 2 . 1 . . 10 8 3 . Max in Single Turn 4 | . . . 1 . 1 . 1 . . 2 4 1 . Garrison Relay 2 | . . . . . 1 . 1 . . . . . . Machines Repaired . | . . . . . . . . . . . . . . Machines Dismantled . | . . . . . . . . . . . . . . Machines Sabotaged . | . . . . . . . . . . . . . . Overloaded Fab Kills . | . . . . . . . . . . . . . . Hacking | -11 -10 -10 -7 -5 -5 -5 -5 -4 -4 -4 -4 -4 -3 --------- Run | Yrd Mat Sub Rec Fac Gar Fac Gar Fac Was Fac Arm Lab Res Machines Accessed 37 | . 1 1 9 1 1 9 . . . 10 2 1 2 Terminals 16 | . 1 . 4 . 1 5 . . . 4 1 . . Fabricators 8 | . . . . . . 2 . . . 4 1 . 1 Repair Stations . | . . . . . . . . . . . . . . Recycling Units 7 | . . . 4 . . 1 . . . 2 . . . Scanalyzers . | . . . . . . . . . . . . . . Garrison Access 3 | . . . . 1 . 1 . . . . . . 1 Total Hacks 91 | . 1 4 28 1 2 23 . . . 20 5 1 6 Successful 36 | . 1 4 13 1 1 8 . . . 5 . 1 2 Failed 55 | . . . 15 . 1 15 . . . 15 5 . 4 Catastrophic 16 | . . . 4 . . 4 . . . 5 1 . 2 Database Lockouts . | . . . . . . . . . . . . . . Manual 25 | . . . 13 . . 3 . . . 7 . . 2 Terminals 38 | . 1 . 11 . 2 15 . . . 7 2 . . Fabricators 21 | . . . . . . 4 . . . 10 3 . 4 Repair Stations . | . . . . . . . . . . . . . . Recycling Units 20 | . . . 15 . . 2 . . . 3 . . . Scanalyzers . | . . . . . . . . . . . . . . Garrison Access 5 | . . . . 1 . 2 . . . . . . 2 Terminal Hacks 14 | . 1 4 3 . 1 4 . . . . . 1 . Record 4 | . . 4 . . . . . . . . . . . Robot Analysis 1 | . 1 . . . . . . . . . . . . Branch Access Points 1 | . . . . . . 1 . . . . . . . Emergency Access Points 1 | . . . . . 1 . . . . . . . . Unreport Threat 1 | . . . . . . 1 . . . . . . . Recall Extermination 1 | . . . . . . 1 . . . . . . . Zone Layout 2 | . . . 1 . . 1 . . . . . . . Release Object 3 | . . . 2 . . . . . . . . 1 . Fabricator Hacks 6 | . . . . . . 2 . . . 3 . . 1 Network Status 2 | . . . . . . . . . . 1 . . 1 Build 4 | . . . . . . 2 . . . 2 . . . Repair Station Hacks . | . . . . . . . . . . . . . . Recycling Unit Hacks 5 | . . . 5 . . . . . . . . . . Retrieve Components 5 | . . . 5 . . . . . . . . . . Scanalyzer . | . . . . . . . . . . . . . . Garrison Access Hacks 3 | . . . . 1 . 2 . . . . . . . Unlock Access 2 | . . . . 1 . 1 . . . . . . . Coupler Status 1 | . . . . . . 1 . . . . . . . Unauthorized Hacks 8 | . . . 5 . . . . . . 2 . . 1 Terminals 2 | . . . 1 . . . . . . 1 . . . Botnet 1 | . . . . . . . . . . 1 . . . Skim 1 | . . . 1 . . . . . . . . . . Fabricators 2 | . . . . . . . . . . 1 . . 1 Report 1 | . . . . . . . . . . . . . 1 Haulers 1 | . . . . . . . . . . 1 . . . Repair Stations . | . . . . . . . . . . . . . . Recycling Units 4 | . . . 4 . . . . . . . . . . Tunnel 4 | . . . 4 . . . . . . . . . . Scanalyzers . | . . . . . . . . . . . . . . Garrison Access . | . . . . . . . . . . . . . . Data Cores Recovered . | . . . . . . . . . . . . . . Used . | . . . . . . . . . . . . . . Hacking Detections 30 | . 1 . 5 . 1 9 . . . 10 2 . 2 Full Trace Events 6 | . . . 3 . . . . . . 1 1 . 1 Feedback Events 1 | . . . 1 . . . . . . . . . . Corruption 1 | . . . 1 . . . . . . . . . . Feedback Blocked . | . . . . . . . . . . . . . . Robot Schematics Acquired . | . . . . . . . . . . . . . . Robots Built 3 | . . . . . . 3 . . . . . . . Authchips . | . . . . . . . . . . . . . . Time 50 | . . . . . . 50 . . . . . . . Total Robot Build Rating 15 | . . . . . . 15 . . . . . . . Part Schematics Acquired . | . . . . . . . . . . . . . . Parts Built 4 | . . . . . . 1 . . . 3 . . . Authchips . | . . . . . . . . . . . . . . Time 196 | . . . . . . 58 . . . 138 . . . Total Part Build Rating 34 | . . . . . . 7 . . . 27 . . . Parts Repaired . | . . . . . . . . . . . . . . Time . | . . . . . . . . . . . . . . Parts Recycled . | . . . . . . . . . . . . . . Recycled Matter . | . . . . . . . . . . . . . . Retrieved Matter . | . . . . . . . . . . . . . . Retrieved Components 13 | . . . 13 . . . . . . . . . . Parts Scanalyzed . | . . . . . . . . . . . . . . Part Schematics Acquired . | . . . . . . . . . . . . . . Parts Damaged . | . . . . . . . . . . . . . . Bothacking | -11 -10 -10 -7 -5 -5 -5 -5 -4 -4 -4 -4 -4 -3 ------------ Run | Yrd Mat Sub Rec Fac Gar Fac Gar Fac Was Fac Arm Lab Res Used RIF Installer 2 | . . . . . 1 . 1 . . . . . . Coupler Efficiency 1 | . . . . . . . 1 . . . . . . Robots Hacked 19 | . . . . . . . . 1 5 9 4 . . Non-combat 4 | . . . . . . . . 1 . 3 . . . Combat 15 | . . . . . . . . . 5 6 4 . . Robot Hacks Applied 26 | . . . . . . . . 1 6 14 5 . . parse_system 1 | . . . . . . . . . 1 . . . . no_distress 1 | . . . . . . . . . . 1 . . . find_chute 1 | . . . . . . . . 1 . . . . . purge_threat 4 | . . . . . . . . . . 4 . . . mark_security 1 | . . . . . . . . . . 1 . . . ignore_targets 5 | . . . . . . . . . 5 . . . . amplify_resonance 3 | . . . . . . . . . . 2 1 . . wipe_record 1 | . . . . . . . . . . . 1 . . overwrite_iff 3 | . . . . . . . . . . 2 1 . . formatsys_low 2 | . . . . . . . . . . 2 . . . formatsys_high 4 | . . . . . . . . . . 2 2 . . Relay Couplers Released 8 | . . . . . 5 . 3 . . . . . . Machine Destruction 8 | . . . . . 5 . 3 . . . . . . Attached 7 | . . . . . . . . . 1 3 3 . . Fabnet Peak Effective % . | . . . . . . . . . . . . . . Robots Rewired 22 | . . . 17 . 3 . . . . . 2 . . Allies Hacked . | . . . . . . . . . . . . . . Hacks Repelled . | . . . . . . . . . . . . . . Allies | -11 -10 -10 -7 -5 -5 -5 -5 -4 -4 -4 -4 -4 -3 -------- Run | Yrd Mat Sub Rec Fac Gar Fac Gar Fac Was Fac Arm Lab Res Total Allies 58 | . . . 17 . 3 3 . . 18 6 5 . 6 Largest Group 18 | . . . 14 5 3 3 3 . 18 18 2 . 5 Highest-Rated Group 656 | . . . 321 103 123 87 87 . 656 656 136 . 64 Highest-Rated Ally 68 | . . . 40 40 41 29 29 . 50 64 68 . 15 Total Orders 37 | . . . 25 5 . . . . . 2 5 . . STAY 12 | . . . 9 1 . . . . . 1 1 . . ROAM 1 | . . . 1 . . . . . . . . . . FOLLOW 8 | . . . 6 1 . . . . . 1 . . . DROP 4 | . . . 1 3 . . . . . . . . . PICKUP 8 | . . . 8 . . . . . . . . . . EXPLORE 2 | . . . . . . . . . . . 2 . . RETURN 2 | . . . . . . . . . . . 2 . . Ally Attacks 300 | . . . 38 1 14 . 37 . . 174 25 . 11 Total Damage 7882 | . . . 1117 22 934 . 526 . . 3839 1033 . 411 Kills 48 | . . . 9 . 9 . 3 . . 21 5 . 1 Allies Corrupted . | . . . . . . . . . . . . . . Allies Melted 2 | . . . . . 1 . . . . 1 . . . Intel | -11 -10 -10 -7 -5 -5 -5 -5 -4 -4 -4 -4 -4 -3 ------- Run | Yrd Mat Sub Rec Fac Gar Fac Gar Fac Was Fac Arm Lab Res Robot Analysis Total 1 | . 1 . . . . . . . . . . . . Derelict Logs Recovered . | . . . . . . . . . . . . . . Drone Launches 3 | . . . . . . . . . . . 3 . . Drone Recoveries 2 | . . . . . . . . . . . 2 . . Exploration | -11 -10 -10 -7 -5 -5 -5 -5 -4 -4 -4 -4 -4 -3 ------------- Run | Yrd Mat Sub Rec Fac Gar Fac Gar Fac Was Fac Arm Lab Res Turns Passed 16905 | . 233 328 2768 187 1683 914 476 76 3914 1285 2371 1265 1405 Spaces Moved 4909 | 1 90 284 931 97 529 401 157 33 509 464 663 373 377 Core 298 | . . 214 13 . . . . . . . . . 71 Treads 3371 | . . 67 192 . 432 401 157 33 347 464 663 373 242 Legs 600 | 1 90 3 441 1 . . . . . . . . 64 Wheels 478 | . . . 285 96 97 . . . . . . . . Hover . | . . . . . . . . . . . . . . Flight 162 | . . . . . . . . . 162 . . . . Fastest Speed 50 | 120 120 50 50 150 150 138 218 218 183 183 171 283 50 Average Speed 212 | 120 120 76 159 152 249 209 218 218 223 191 256 283 291 Slowest Speed 427 | 120 120 190 320 324 312 232 218 218 263 292 292 283 427 Overloaded Moves . | . . . . . . . . . . . . . . Propulsion Burnouts . | . . . . . . . . . . . . . . Robots Hopped 1 | . . . 1 . . . . . . . . . . Cave-ins Triggered 5 | . . . . . . . 3 . . . 2 . . Teleports 1 | . . . . . . . . . . . . . 1 Exploration Rate (%) 35 | 2 21 28 96 2 48 12 22 2 96 16 37 98 17 Regions Visited 13 Branch Regions 4 Pre-discovered Areas 5 | . . 1 4 . . . . . . . . . . Known Exits Taken 2 | . . . . 1 . 1 . . . . . . . Unknown Exits Taken 7 | 1 1 1 1 . . . . . . 1 1 1 . Scrap Searched . | . . . . . . . . . . . . . . Spaces Dug 81 | . . . 1 . 6 7 19 . . 2 45 . 1 Terrain Destroyed 319 | . . . 9 . 79 12 20 . 1 9 108 3 78 Melee 15 | . . . . . 6 . 7 . . . 2 . . Projectile 98 | . . . 6 . . 12 13 . 1 9 48 3 6 AOE 206 | . . . 3 . 73 . . . . . 58 . 72 Terrain Rammed . | . . . . . . . . . . . . . . Walls Destroyed . | . . . . . . . . . . . . . . Machines Disabled . | . . . . . . . . . . . . . . Actions | -11 -10 -10 -7 -5 -5 -5 -5 -4 -4 -4 -4 -4 -3 --------- Run | Yrd Mat Sub Rec Fac Gar Fac Gar Fac Was Fac Arm Lab Res Total 10594 | . 151 365 2125 136 780 469 235 39 3195 756 1162 509 672 Wait 4203 | . 24 49 865 4 46 24 12 2 2553 149 238 50 187 Move 4895 | . 89 283 928 97 528 401 155 33 508 463 661 372 377 Hop 1 | . . . 1 . . . . . . . . . . Pick Up 162 | . 4 3 31 18 30 12 3 . 11 8 27 13 2 Fast Attach 36 | . . 1 2 2 4 2 . . 2 9 9 1 4 Attach 72 | . . 3 8 6 3 . 7 2 2 7 19 6 9 Detach 23 | . . . 1 . 4 1 1 1 3 5 4 2 1 Swap 44 | . 2 1 2 . 7 1 1 . 5 5 10 2 8 Drop 128 | . 3 7 18 7 26 15 1 . 13 6 19 5 8 Fire 721 | . 29 15 79 2 92 13 41 1 98 104 158 19 70 Melee 57 | . . . . . 9 . 7 . . . 3 38 . Ram 5 | . . . . . . . . . . . . . 5 Kick 2 | . . . 1 . . . . . . . . . 1 Crush 2 | . . . 1 . . . . . . . . 1 . Escape Stasis 11 | . . . . . 3 . 7 . . . 1 . . Rewire 229 | . . . 188 . 28 . . . . . 13 . . Trap . | . . . . . . . . . . . . . . Miscellaneous 3 | . . 3 . . . . . . . . . . . Route ------- -11/Scrapyard -10/Materials -10/Subcaves -7/Recycling -5/Factory -5/Garrison -5/Factory (discovered 3 exits: Upp x2 / Gar) -5/Garrison -4/Factory -4/Waste -4/Factory -4/Armory -4/Lab -3/Research History --------- Turn | Location | Event 1 | -11/Scrapyard | Discovered new exit (range 0) 1 | -11/Scrapyard | Entered Materials 229 | -10/Materials | Discovered new exit (range 3) 234 | -10/Materials | Entered Subcaves 289 | -10/Subcaves | Visited Clippyterm 294 | -10/Subcaves | Learned location of Extension (-6) 294 | -10/Subcaves | Learned Research machine intel 317 | -10/Subcaves | Build established: Mutant 420 | -10/Subcaves | Ambushed by swarm of Subdwellers 525 | -10/Subcaves | A swath of the cavern ceiling suddenly collapsed 557 | -10/Subcaves | Discovered new exit (range 11) 562 | -10/Subcaves | Entered Recycling 964 | -7/Recycling | Build established: Commander-Mutant 1027 | -7/Recycling | Lost 3 allies 1197 | -7/Recycling | Core integrity fell below 50% 1439 | -7/Recycling | Discovered new exit (range 11) 1543 | -7/Recycling | Scanned before Scraplab entrance 1588 | -7/Recycling | Entered Scraplab 1620 | -7/Recycling | Angered Scraplab inhabitants 1657 | -7/Recycling | Lost 3 allies 1657 | -7/Recycling | Found Prototype Device 1657 | -7/Recycling | Identified Scrap Engine 2002 | -7/Recycling | Build established: Commander-Construct 3330 | -7/Recycling | Entered Factory 3330 | -5/Factory | Accompanied by 5 allies 3330 | -5/Factory | Evolved 10 slots: Power x1, Propulsion x2, Utility x6, Weapon x1 3473 | -5/Factory | Found Launcher Loader 3517 | -5/Factory | Identified exit to Garrison 3517 | -5/Factory | Entered Garrison 3517 | -5/Garrison | Warlord forces raided the area 3517 | -5/Garrison | Accompanied by 1 ally 3530 | -5/Garrison | Triggered checkpoint 3577 | -5/Garrison | Lost 4 allies 3843 | -5/Garrison | Triggered checkpoint 3857 | -5/Garrison | Triggered checkpoint 3879 | -5/Garrison | Lost 6 allies 3941 | -5/Garrison | Triggered checkpoint 3993 | -5/Garrison | Warlord forces retreated 4129 | -5/Garrison | Build established: Scavenger-Construct 4385 | -5/Garrison | Triggered checkpoint 4401 | -5/Garrison | Triggered checkpoint 4459 | -5/Garrison | Triggered checkpoint 4521 | -5/Garrison | Build established: Hauler-Construct 4800 | -5/Garrison | Found Quantum Capacitor 4817 | -5/Garrison | Garrison Relay disabled 5076 | -5/Garrison | Discovered new exit (range 15) 5165 | -5/Garrison | Installed Relay Interface Framework 5200 | -5/Garrison | Entered Factory 5493 | -5/Factory | Identified exit to Upper Caves 5617 | -5/Factory | Fabricated Micro-nuke Launcher (x1) 6044 | -5/Factory | Fabricated G-50 Soldier? 6100 | -5/Factory | First assault squad dispatched 6114 | -5/Factory | Identified exit to Garrison 6114 | -5/Factory | Entered Garrison 6114 | -5/Garrison | Accompanied by 3 allies 6182 | -5/Garrison | Triggered checkpoint 6247 | -5/Garrison | Garrison Relay disabled 6418 | -5/Garrison | Spotted B-75 Beast 6471 | -5/Garrison | Lost 3 allies 6493 | -5/Garrison | Crushed by falling debris 6494 | -5/Garrison | System corruption reached 10% 6515 | -5/Garrison | Crushed by falling debris 6519 | -5/Garrison | Crushed by falling debris 6538 | -5/Garrison | Expanded RIF knowledge: Coupler Efficiency 6550 | -5/Garrison | Lost 6 parts (5u1w) 6560 | -5/Garrison | Build established: Bothacker-Construct 6567 | -5/Garrison | Discovered new exit (range 12) 6590 | -5/Garrison | Entered Factory 6590 | -4/Factory | Evolved 2 slots: Propulsion x1, Utility x1 6666 | -4/Factory | Sucked down chute 6666 | -4/Factory | Entered Waste 6695 | -4/Waste | Spotted C-40 Crusher 6699 | -4/Waste | Spotted C-40 Crusher 6819 | -4/Waste | Spotted C-40 Crusher 6842 | -4/Waste | Spotted C-40 Crusher 6877 | -4/Waste | Spotted C-40 Crusher 6878 | -4/Waste | Destroyed C-40 Crusher 6883 | -4/Waste | Spotted C-40 Crusher 7065 | -4/Waste | Discovered new exit (range 12) 7263 | -4/Waste | Destroyed C-40 Crusher 7284 | -4/Waste | Found Damper Plating 7379 | -4/Waste | Destroyed C-40 Crusher 7472 | -4/Waste | Destroyed C-40 Crusher 7487 | -4/Waste | Destroyed C-40 Crusher 7557 | -4/Waste | Destroyed C-40 Crusher 10262 | -4/Waste | Warlord forces began an assault 10580 | -4/Waste | Entered Factory 10580 | -4/Factory | Accompanied by 18 allies 10835 | -4/Factory | Lost 3 allies 11022 | -4/Factory | Fabricated Enh. Nova Cannon (x2) 11026 | -4/Factory | Lost 4 allies 11286 | -4/Factory | Spotted B-86 Titan 11314 | -4/Factory | Destroyed B-86 Titan 11526 | -4/Factory | Fabricated Biometal Heavy Treads (x1) 11601 | -4/Factory | Discovered new exit (range 16) 11680 | -4/Factory | Found Prototype Processor 11680 | -4/Factory | Identified Exp. Targeting Computer 11865 | -4/Factory | Entered Armory 12390 | -4/Armory | Core integrity fell below 50% 12462 | -4/Armory | Crushed by falling debris 12534 | -4/Armory | System corruption reached 10% 12592 | -4/Armory | Found Fusion Bomb Launcher 12619 | -4/Armory | Crushed by falling debris 12677 | -4/Armory | Lost 5 parts (1n4u) 12734 | -4/Armory | Found Quantum Capacitor 12872 | -4/Armory | Build established: Hauler-Mutant 13649 | -4/Armory | Build established: Hauler-Tank 13699 | -4/Armory | Lost 3 parts (1n2u) 14066 | -4/Armory | P-70 Sage assimilated allied Assassin 7a 14077 | -4/Armory | Build established: Hauler-Mutant 14081 | -4/Armory | Core integrity fell below 20% 14193 | -4/Armory | Discovered new exit (range 5) 14236 | -4/Armory | Entered Lab 14236 | -4/Lab | Discovered new exit (range 9) 14288 | -4/Lab | Detected for breach 14289 | -4/Lab | Gained access to the hidden lab's interior 14294 | -4/Lab | Confronted by A5 14351 | -4/Lab | System corruption reached 30% 14373 | -4/Lab | Found Alien Artifact 14374 | -4/Lab | Identified Core Reset Matrix 14374 | -4/Lab | Used Core Reset Matrix 14378 | -4/Lab | Sensed 3 artifacts in vicinity 14493 | -4/Lab | Discovered new exit (range 15) 14524 | -4/Lab | Found Prototype Special Weapon 14593 | -4/Lab | Found Transdimensional Reconstructor 14605 | -4/Lab | Found Integrated Mediator 14620 | -4/Lab | Found Core Regenerator 14691 | -4/Lab | Found Prototype Hackware 14704 | -4/Lab | Found Prototype Protection 14717 | -4/Lab | Found Prototype Energy Gun 14724 | -4/Lab | Found Prototype Energy Cannon 15294 | -4/Lab | Destroyed A5 15300 | -4/Lab | Installed Integrated Mediator, increased core attachment efficiency 15329 | -4/Lab | Identified Hyp. EM Gauss Rifle 15351 | -4/Lab | Unable to decrypt terminal 15354 | -4/Lab | Found LC Capacitor 15501 | -4/Lab | Entered Research 15501 | -3/Research | Evolved 2 slots: Utility x2 15552 | -3/Research | Identified Exp. Powered Armor 15630 | -3/Research | Build established: Hauler-Gunner 16424 | -3/Research | Identified Quantum Router 16464 | -3/Research | Build established: Hauler-Mutant 16811 | -3/Research | Found Prototype Processor 16811 | -3/Research | Identified Exp. Signal Interpreter 16813 | -3/Research | Intercept squad dispatched 16828 | -3/Research | Spotted Tracker 16829 | -3/Research | Spotted Tracker 16832 | -3/Research | Warped through subspace 16851 | -3/Research | Spotted Striker 16851 | -3/Research | Spotted Executioner 16852 | -3/Research | Cargo convoy interrupted 16855 | -3/Research | Destroyed Striker 16857 | -3/Research | Destroyed Executioner 16863 | -3/Research | Used Core Regenerator, restored core integrity (+325) 16864 | -3/Research | Released all parts (9) 16869 | -3/Research | Spotted B-86 Titan 16880 | -3/Research | Destroyed 7 combat bots 16888 | -3/Research | Core integrity fell below 50% 16891 | -3/Research | Emitted hypermatrix ping 16894 | -3/Research | Core integrity fell below 20% 16895 | -3/Research | Lost 7 parts (1p1n3u2w) 16896 | -3/Research | Assembled emerged from beneath the floor 16898 | -3/Research | Garrison activated, responded to threat 16900 | -3/Research | Spotted B-86 Titan 16906 | -3/Research | Destroyed by B-86 Titan with Hardcell Cannon Last Messages --------------- 16890_ Slammed into G-67 Veteran. 16891_ Emitted hypermatrix ping. 16892_ Detected hypermatrix ping. 16894_ Slug penetrates Door. 16896_ Identified Hacking Suite. 16898_ ALERT: Activating Garrison Access R002. 16899_ as-52358 suffers critical hit (Burn). 16899_ as-52358 destroyed. 16900_ as-30565 destroyed. 16900_ as-69728 destroyed. 16900_ as-01506 destroyed. 16901_ as-87607 knocked back. 16902_ A-15 Conveyor destroyed. 16902_ as-87607 destroyed. 16902_ Knocked back. 16902_ Slug penetrates Wall. 16904_ K-01 Serf collects debris. 16904_ Slug penetrates Ion Accelerator. 16904_ Ion Accelerator explodes. 16905_ U-05 Engineer builds a Door. Map ----- +----------------------------------------------------+ | ?????????????????????????????????????????????????? | | ?????????????????????????????????????????????????? | | ?????????????????????????????????????????????????? | | ?????????????????????????????????????????????????? | | ?????????????????????????????????????????????????? | | ?????????????????????????????????????????????????? | | ?????????????????????????????????????????????????? | | ?????????????????????????????????????????????????? | | ?????????????????????????????????????????????????? | | ?????????????????????????????????????????????????? | | ?????????????????????????????????????????????????? | | ?????????????????????????? ????????????????????? | | ?????????????????????????? "?"????????????????? | | ?????????????????????????? ??????????????? | | ?????????????????????????? ????????????? | | ?????????????????????????? ????????????? | | ????????????????#####????? "????????????? | | ????????????????# ???+ ""???????????? | | ????????????????# ???# ""???????????? | | ????????????????# [??# ""???????????? | | ????????????????# ??# """ ?????????? | | ????????????????# ! ?# ?????????? | | ????????????????# ?# ????????? | | ????????????????# % # s ????????? | | ????????????????# ] # ss ???????? | | ????????????????# @ s s *=! ???????? | | ?????????????????########; BB R *= ???????? | | ????????????????????????## BB =! ???????? | | ?????????????????????????# #### ####?????????? | | ?????????????????????????# #??????????????????? | | ?????????????????????????# #??????????????????? | | ?????????????????????????# a###########????????? | | ?????????????????????????# u# ] #????????? | | ?????????????????????????# # #????????? | | ?????????????????????????# # #????????? | | ?????????????????????????# # """ #????????? | | ????????????????#????????# Huk# """ [ #????????? | | ??????????????# ??????# u# """ #????????? | | ??????????????# ##### + #????????? | | ??????????????+ # #????????? | | ??????????????# *!###########????????? | | ??????????????# #####*%=*# #?????????? | | ???????????????? ??????#*=%=# #?????????? | | ????????????????#????????#=*%!# = " #?????????? | | ?????????????????????????# *%# "" #?????????? | | ?????????????????????????+ % /% G ##??####### | | ?????????????????????????# %" "" #??# | | ?????????????????????????# ^ # " ##??# | | ?????????????????????????+ # !*= #???# | | ?????????????????????????## ## ! ! #???# | +----------------------------------------------------+ Best States ------------- Heat Dissipation 139 Coolant Potential 65 Energy Generation 59 Energy Capacity 1447 Matter Stores 300 Matter Capacity 300 Sight Range 16 Terrain Scan Density 10 Jamming Range 16 Cloak Strength 4 Power Amplification 40 Corruption Block 6 Armor Coverage 800 Resistance: KI 25 Resistance: TH 30 Phase Shifting 15 Evasion (%) 55 Targeting Accuracy 12 Recoil Reduction 5 Particle Charging 25 Offensive Hacking 12 Defensive Hacking 25 Relay Coupler Types 2 Relay Coupler Value 38 Item Schematics ----------------- None Robot Schematics ------------------ None Fabricated ------------ Micro-nuke Launcher | x1 | -5/Factory | Preloaded G-50 Soldier | x3 | -5/Factory | Preloaded Enh. Nova Cannon | x2 | -4/Factory | Preloaded Biometal Heavy Treads | x1 | -4/Factory | Preloaded Alien Tech Used ----------------- Core Reset Matrix Integrated Mediator LC Capacitor Transdimensional Reconstructor Core Regenerator Achievements -------------- None Challenges ------------ None Game ------ Seed BombSuperchargedShifter Manual? 0 Play Time 02:24:40 Cumulative 318.4 hours Start 2024.10.01 @ 18:39:16 End 2024.10.03 @ 17:52:16 Sessions 7 Manual Loads 0 Difficulty Rogue Special Mode None Game No. 153 Rogue 153 Adventurer 0 Explorer 0 Win Type - Total 9 Types 5/1/3/0/0/0/0/0/0 Lore% 80 Gallery% 87 Achievement% 73 Wizard Run 0 Options --------- Layout 0 ASCII 0 Keyboard 0 Movement Mouse Keybinds 0 Fullscreen 2 Font 12/Smallcaps Map View 83x54 Zoom Use 0% Tactical HUD 1 Map Filters NONE Filters NONE Steam 1 RUN: 1f1cf72f-4be1-4956-b902-1b43b8154feb